[Event "Betsys MČR v online bleskovém šachu 2021"]
[Site "Chess.com"]
[Date "2021.04.17"]
[Round "4"]
[White "vadoto"]
[Black "CzechMerlin"]
[Result "0-1"]
[WhiteElo "1266"]
[BlackElo "1668"]
[TimeControl "180+1"]
[EndTime "9:37:35 PDT"]
[Termination "Uživatel CzechMerlin zvítězil matem"]

1. e4 {[%clk 0:02:59.1]} 1... e5 {[%clk 0:02:35.5]} 2. Nf3 {[%clk 0:02:57.6]}
2... d6 {[%clk 0:02:35.5]} 3. c3 {[%clk 0:02:53.6]} 3... f5 {[%clk 0:02:35.5]}
4. exf5 {[%clk 0:02:49.9]} 4... Bxf5 {[%clk 0:02:34.2]} 5. d4 {[%clk 0:02:48.7]}
5... e4 {[%clk 0:02:33.6]} 6. Ng5 {[%clk 0:02:41.7]} 6... d5 {[%clk 0:02:28.3]}
7. Bb5+ {[%clk 0:02:36.2]} 7... c6 {[%clk 0:02:27.4]} 8. Ba4 {[%clk 0:02:36.1]}
8... Be7 {[%clk 0:02:27.6]} 9. Nh3 {[%clk 0:02:28.4]} 9... Bxh3 {[%clk
0:02:26.2]} 10. gxh3 {[%clk 0:02:27.6]} 10... Nf6 {[%clk 0:02:26]} 11. Nd2
{[%clk 0:02:24.9]} 11... Nbd7 {[%clk 0:02:16.2]} 12. Qe2 {[%clk 0:02:19]} 12...
Nb6 {[%clk 0:02:14.8]} 13. Bc2 {[%clk 0:02:15.4]} 13... Qd7 {[%clk 0:02:14.5]}
14. h4 {[%clk 0:01:55.3]} 14... Qf5 {[%clk 0:02:05.1]} 15. Nb3 {[%clk 0:01:52]}
15... Ng4 {[%clk 0:01:52.2]} 16. Be3 {[%clk 0:01:43.7]} 16... Bxh4 {[%clk
0:01:47.9]} 17. O-O-O {[%clk 0:01:42.6]} 17... O-O-O {[%clk 0:01:31]} 18. Nc5
{[%clk 0:01:41.4]} 18... Nd7 {[%clk 0:01:25]} 19. Nxd7 {[%clk 0:01:21.5]} 19...
Rxd7 {[%clk 0:01:22.4]} 20. Rdg1 {[%clk 0:01:21.3]} 20... Nxf2 {[%clk
0:01:06.5]} 21. Bxf2 {[%clk 0:01:18.2]} 21... Bxf2 {[%clk 0:00:58.5]} 22. Rf1
{[%clk 0:01:18]} 22... Rf7 {[%clk 0:00:55.7]} 23. Kb1 {[%clk 0:00:52.9]} 23...
g5 {[%clk 0:00:51.7]} 24. h3 {[%clk 0:00:51.9]} 24... h5 {[%clk 0:00:50.5]} 25.
Rh2 {[%clk 0:00:51.4]} 25... Rhf8 {[%clk 0:00:48.7]} 26. Qxh5 {[%clk 0:00:40.9]}
26... Rh7 {[%clk 0:00:27.7]} 27. Qe2 {[%clk 0:00:36.1]} 27... Qf3 {[%clk
0:00:14.9]} 28. Bd1 {[%clk 0:00:21.2]} 28... Qxe2 {[%clk 0:00:13.9]} 29. Bxe2
{[%clk 0:00:20.1]} 29... e3 {[%clk 0:00:14.2]} 30. Bg4+ {[%clk 0:00:17.8]} 30...
Kc7 {[%clk 0:00:13]} 31. Kc2 {[%clk 0:00:17.4]} 31... Kd6 {[%clk 0:00:11.6]} 32.
Kd3 {[%clk 0:00:17.4]} 32... Rf4 {[%clk 0:00:11]} 33. Ke2 {[%clk 0:00:15.2]}
33... Rxg4 {[%clk 0:00:10.7]} 34. Rhxf2 {[%clk 0:00:13.8]} 34... exf2 {[%clk
0:00:10.3]} 35. Rxf2 {[%clk 0:00:14]} 35... Re4+ {[%clk 0:00:10.5]} 36. Kd3
{[%clk 0:00:13.9]} 36... Rxh3+ {[%clk 0:00:11.1]} 37. Kd2 {[%clk 0:00:12.9]}
37... g4 {[%clk 0:00:11.1]} 38. Rf6+ {[%clk 0:00:12.3]} 38... Kc7 {[%clk
0:00:11.6]} 39. Rf7+ {[%clk 0:00:12.3]} 39... Kb6 {[%clk 0:00:11.9]} 40. Rf2
{[%clk 0:00:11.6]} 40... g3 {[%clk 0:00:11.6]} 41. Rg2 {[%clk 0:00:11.5]} 41...
Rh2 {[%clk 0:00:11.8]} 42. Rxh2 {[%clk 0:00:09]} 42... gxh2 {[%clk 0:00:12.7]}
43. Kd3 {[%clk 0:00:09]} 43... h1=Q {[%clk 0:00:13.2]} 44. c4 {[%clk 0:00:08.2]}
44... Qf3+ {[%clk 0:00:13.7]} 45. Kc2 {[%clk 0:00:07.7]} 45... Re2+ {[%clk
0:00:14.6]} 46. Kb1 {[%clk 0:00:07.4]} 46... Qf1# {[%clk 0:00:15.2]} 0-1

[Event "Betsys MČR v online bleskovém šachu 2021"]
[Site "Chess.com"]
[Date "2021.04.17"]
[Round "4"]
[White "Mikkes33"]
[Black "Emicka1330"]
[Result "0-1"]
[WhiteElo "1236"]
[BlackElo "1651"]
[TimeControl "180+1"]
[EndTime "9:37:37 PDT"]
[Termination "Uživatel Emicka1330 zvítězil na čas"]

1. e4 {[%clk 0:02:58.5]} 1... d5 {[%clk 0:02:58.4]} 2. exd5 {[%clk 0:02:57]}
2... Nf6 {[%clk 0:02:57.9]} 3. d4 {[%clk 0:02:56.9]} 3... Nxd5 {[%clk
0:02:57.3]} 4. Nf3 {[%clk 0:02:56.9]} 4... g6 {[%clk 0:02:57]} 5. c4 {[%clk
0:02:56.1]} 5... Nb6 {[%clk 0:02:56.4]} 6. b3 {[%clk 0:02:55.7]} 6... Bg7 {[%clk
0:02:54.3]} 7. Bb2 {[%clk 0:02:55.8]} 7... Nc6 {[%clk 0:02:52.6]} 8. Be2 {[%clk
0:02:49.2]} 8... O-O {[%clk 0:02:50.3]} 9. O-O {[%clk 0:02:48.4]} 9... Bg4
{[%clk 0:02:49.5]} 10. Nbd2 {[%clk 0:02:42.2]} 10... Qd7 {[%clk 0:02:29.5]} 11.
Qc2 {[%clk 0:02:15.2]} 11... Nxd4 {[%clk 0:02:15]} 12. Nxd4 {[%clk 0:02:13]}
12... Bxd4 {[%clk 0:02:13.7]} 13. Bxg4 {[%clk 0:01:59.8]} 13... Qxg4 {[%clk
0:02:09.3]} 14. h3 {[%clk 0:01:45.9]} 14... Qf4 {[%clk 0:02:00.6]} 15. Bxd4
{[%clk 0:01:41.5]} 15... Qxd4 {[%clk 0:01:58.9]} 16. Rad1 {[%clk 0:01:40.4]}
16... Rad8 {[%clk 0:01:55.5]} 17. Nf3 {[%clk 0:01:36.1]} 17... Qf6 {[%clk
0:01:53.6]} 18. Qe4 {[%clk 0:01:31.8]} 18... c6 {[%clk 0:01:48.1]} 19. Rd4
{[%clk 0:01:15.8]} 19... Rxd4 {[%clk 0:01:42.5]} 20. Nxd4 {[%clk 0:01:14]} 20...
Rd8 {[%clk 0:01:37.8]} 21. Nf3 {[%clk 0:01:09.2]} 21... e6 {[%clk 0:01:29.5]}
22. Ne5 {[%clk 0:00:55.6]} 22... Nd7 {[%clk 0:01:18.8]} 23. Ng4 {[%clk
0:00:50.3]} 23... Qb2 {[%clk 0:01:09.5]} 24. Rd1 {[%clk 0:00:45.1]} 24... Qxa2
{[%clk 0:00:30.3]} 25. Nf6+ {[%clk 0:00:31.5]} 25... Nxf6 {[%clk 0:00:25.7]} 26.
Rxd8+ {[%clk 0:00:29.9]} 26... Kg7 {[%clk 0:00:25.8]} 27. Qf3 {[%clk 0:00:20.5]}
27... Qa1+ {[%clk 0:00:21]} 28. Kh2 {[%clk 0:00:19.3]} 28... Qe5+ {[%clk
0:00:20.9]} 29. g3 {[%clk 0:00:17.7]} 29... Ne4 {[%clk 0:00:16.5]} 30. Rd7
{[%clk 0:00:15.3]} 30... Nf6 {[%clk 0:00:10.8]} 31. Rxb7 {[%clk 0:00:12]} 31...
a5 {[%clk 0:00:09.5]} 32. Ra7 {[%clk 0:00:08.7]} 32... h5 {[%clk 0:00:08.3]} 33.
Qxc6 {[%clk 0:00:07.1]} 33... Qe2 {[%clk 0:00:04.1]} 34. Qg2 {[%clk 0:00:05.4]}
34... Qc2 {[%clk 0:00:02.9]} 35. f4 {[%clk 0:00:03]} 35... Qxb3 {[%clk
0:00:02.5]} 36. c5 {[%clk 0:00:02.3]} 36... Qc4 {[%clk 0:00:02.3]} 37. c6 {[%clk
0:00:01.2]} 37... Nd5 {[%clk 0:00:01.2]} 0-1

[Event "Betsys MČR v online bleskovém šachu 2021"]
[Site "Chess.com"]
[Date "2021.04.17"]
[Round "4"]
[White "mayerrs"]
[Black "AJedlicka"]
[Result "0-1"]
[WhiteElo "1895"]
[BlackElo "2199"]
[TimeControl "180+1"]
[EndTime "9:37:38 PDT"]
[Termination "Uživatel AJedlicka zvítězil po vzdání soupeře"]

1. g3 {[%clk 0:03:00.9]} 1... d5 {[%clk 0:02:59.1]} 2. Bg2 {[%clk 0:03:01.8]}
2... Nf6 {[%clk 0:02:57.5]} 3. e3 {[%clk 0:03:02]} 3... c6 {[%clk 0:02:57.3]} 4.
Ne2 {[%clk 0:03:02.1]} 4... g6 {[%clk 0:02:55.3]} 5. b3 {[%clk 0:03:02.3]} 5...
Bg7 {[%clk 0:02:55.1]} 6. Bb2 {[%clk 0:03:02.6]} 6... O-O {[%clk 0:02:54.6]} 7.
a3 {[%clk 0:03:02.8]} 7... a5 {[%clk 0:02:54.3]} 8. d4 {[%clk 0:03:02.6]} 8...
Bf5 {[%clk 0:02:51.4]} 9. O-O {[%clk 0:03:02.1]} 9... Qd7 {[%clk 0:02:51.1]} 10.
Nd2 {[%clk 0:03:02.1]} 10... Bh3 {[%clk 0:02:50.6]} 11. Nf4 {[%clk 0:03:02.2]}
11... Bxg2 {[%clk 0:02:49.8]} 12. Nxg2 {[%clk 0:03:03.1]} 12... Na6 {[%clk
0:02:48.5]} 13. Rc1 {[%clk 0:03:02]} 13... Nc7 {[%clk 0:02:47.7]} 14. c4 {[%clk
0:03:02.1]} 14... a4 {[%clk 0:02:42.7]} 15. b4 {[%clk 0:03:01.7]} 15... dxc4
{[%clk 0:02:36.1]} 16. Nxc4 {[%clk 0:03:02.6]} 16... Ncd5 {[%clk 0:02:35.4]} 17.
Re1 {[%clk 0:02:56.8]} 17... b5 {[%clk 0:02:32.3]} 18. e4 {[%clk 0:02:51.8]}
18... bxc4 {[%clk 0:02:30]} 19. exd5 {[%clk 0:02:51.8]} 19... cxd5 {[%clk
0:02:30]} 20. Qe2 {[%clk 0:02:39]} 20... e6 {[%clk 0:02:27.6]} 21. h3 {[%clk
0:02:34.6]} 21... Ne4 {[%clk 0:02:26.8]} 22. Kh2 {[%clk 0:02:26]} 22... Rac8
{[%clk 0:02:24.5]} 23. f3 {[%clk 0:02:24.7]} 23... Nd6 {[%clk 0:02:23.8]} 24.
Bc3 {[%clk 0:02:24.8]} 24... Nf5 {[%clk 0:02:21.4]} 25. Rcd1 {[%clk 0:02:16.7]}
25... Qd6 {[%clk 0:02:19.3]} 26. f4 {[%clk 0:02:14.9]} 26... h5 {[%clk
0:02:17.9]} 27. Qf3 {[%clk 0:02:00.4]} 27... Qb6 {[%clk 0:02:15.6]} 28. Qf2
{[%clk 0:01:58.3]} 28... Nd6 {[%clk 0:02:13]} 29. Qf3 {[%clk 0:01:48.6]} 29...
Ne4 {[%clk 0:02:10.2]} 30. Bb2 {[%clk 0:01:48.6]} 30... c3 {[%clk 0:02:09.2]}
31. Bc1 {[%clk 0:01:42.5]} 31... c2 {[%clk 0:02:08.9]} 32. Rd3 {[%clk
0:01:41.2]} 32... Bxd4 {[%clk 0:02:05.1]} 33. Re2 {[%clk 0:01:33.7]} 33... Bg7
{[%clk 0:01:52.7]} 34. Ne1 {[%clk 0:01:33.2]} 34... Rc4 {[%clk 0:01:45.7]} 35.
Be3 {[%clk 0:01:08.7]} 35... Qc6 {[%clk 0:01:39.7]} 36. Bc1 {[%clk 0:01:09.1]}
36... Rc8 {[%clk 0:01:34.5]} 37. g4 {[%clk 0:01:09.1]} 37... hxg4 {[%clk
0:01:33.7]} 38. hxg4 {[%clk 0:01:10]} 38... Qb6 {[%clk 0:01:30.6]} 39. f5 {[%clk
0:00:54.6]} 39... exf5 {[%clk 0:01:27.9]} 40. gxf5 {[%clk 0:00:55.1]} 40... Rc3
{[%clk 0:01:20.6]} 41. Ree3 {[%clk 0:00:48.6]} 41... Rxd3 {[%clk 0:01:19.3]} 42.
Rxd3 {[%clk 0:00:49.5]} 42... Qd6+ {[%clk 0:01:13.7]} 43. Kg2 {[%clk 0:00:47.8]}
43... Qe5 {[%clk 0:01:05.6]} 44. fxg6 {[%clk 0:00:33.4]} 44... fxg6 {[%clk
0:01:04.4]} 45. Re3 {[%clk 0:00:12.8]} 45... Rf8 {[%clk 0:01:01.1]} 46. Qg4
{[%clk 0:00:06.9]} 46... Qf6 {[%clk 0:00:56.6]} 47. Rf3 {[%clk 0:00:02.8]} 47...
Qd6 {[%clk 0:00:42.8]} 48. Rxf8+ {[%clk 0:00:03.7]} 48... Kxf8 {[%clk
0:00:40.5]} 49. Nf3 {[%clk 0:00:04.5]} 49... Kg8 {[%clk 0:00:34]} 50. Kf1 {[%clk
0:00:05]} 50... Qa6+ {[%clk 0:00:33]} 51. Kg2 {[%clk 0:00:04.9]} 51... Qe2+
{[%clk 0:00:31.9]} 52. Kh3 {[%clk 0:00:04.4]} 52... Nf2+ {[%clk 0:00:31.6]} 53.
Kh4 {[%clk 0:00:03.7]} 53... Nxg4 {[%clk 0:00:31]} 54. Kxg4 {[%clk 0:00:04.6]}
54... Qg2+ {[%clk 0:00:30.3]} 0-1

[Event "Betsys MČR v online bleskovém šachu 2021"]
[Site "Chess.com"]
[Date "2021.04.17"]
[Round "4"]
[White "dnovotny"]
[Black "MatejKopecky13"]
[Result "0-1"]
[WhiteElo "1759"]
[BlackElo "1517"]
[TimeControl "180+1"]
[EndTime "9:37:38 PDT"]
[Termination "Uživatel MatejKopecky13 zvítězil matem"]

1. e4 {[%clk 0:03:00.9]} 1... e6 {[%clk 0:02:59.9]} 2. d4 {[%clk 0:02:56.9]}
2... d5 {[%clk 0:02:58.9]} 3. Nc3 {[%clk 0:02:56.5]} 3... dxe4 {[%clk
0:02:55.4]} 4. Nxe4 {[%clk 0:02:55]} 4... Nd7 {[%clk 0:02:55.9]} 5. Nf3 {[%clk
0:02:52.4]} 5... Ngf6 {[%clk 0:02:51.3]} 6. Bg5 {[%clk 0:02:52.2]} 6... Be7
{[%clk 0:02:50.4]} 7. Bxf6 {[%clk 0:02:52.1]} 7... Nxf6 {[%clk 0:02:49.6]} 8.
Bd3 {[%clk 0:02:26.8]} 8... Nxe4 {[%clk 0:02:43.8]} 9. Bxe4 {[%clk 0:02:25.7]}
9... c6 {[%clk 0:02:42.5]} 10. O-O {[%clk 0:02:12.2]} 10... Bf6 {[%clk
0:02:39.7]} 11. Re1 {[%clk 0:02:10.2]} 11... O-O {[%clk 0:02:38.9]} 12. c3
{[%clk 0:01:57.3]} 12... h6 {[%clk 0:02:37.5]} 13. Bc2 {[%clk 0:01:55.8]} 13...
Bd7 {[%clk 0:02:36.1]} 14. Qd3 {[%clk 0:01:55.3]} 14... g6 {[%clk 0:02:32.5]}
15. Ne5 {[%clk 0:01:30.1]} 15... Bg7 {[%clk 0:02:26.6]} 16. Re3 {[%clk
0:01:16.6]} 16... Bxe5 {[%clk 0:02:09.2]} 17. dxe5 {[%clk 0:01:06]} 17... Bc8
{[%clk 0:01:53.4]} 18. Rg3 {[%clk 0:01:04.7]} 18... Qxd3 {[%clk 0:01:51.8]} 19.
Rxd3 {[%clk 0:01:03.3]} 19... b6 {[%clk 0:01:46.7]} 20. Rad1 {[%clk 0:01:03.1]}
20... Ba6 {[%clk 0:01:45]} 21. Rd7 {[%clk 0:01:02.9]} 21... c5 {[%clk
0:01:41.6]} 22. Be4 {[%clk 0:01:03]} 22... Rac8 {[%clk 0:01:26.5]} 23. Rxa7
{[%clk 0:01:02.9]} 23... Be2 {[%clk 0:01:25.8]} 24. Rdd7 {[%clk 0:01:00.3]}
24... Bb5 {[%clk 0:01:23.3]} 25. Rdb7 {[%clk 0:00:25.9]} 25... Rfd8 {[%clk
0:01:16.4]} 26. Bf3 {[%clk 0:00:11.1]} 26... Rd2 {[%clk 0:01:06.5]} 27. Rxf7
{[%clk 0:00:10]} 27... Rxb2 {[%clk 0:00:58.8]} 28. Rg7+ {[%clk 0:00:10]} 28...
Kf8 {[%clk 0:00:58.1]} 29. Raf7+ {[%clk 0:00:09.5]} 29... Ke8 {[%clk 0:00:58.5]}
30. Re7+ {[%clk 0:00:09.5]} 30... Kf8 {[%clk 0:00:57.3]} 31. Ref7+ {[%clk
0:00:08.9]} 31... Ke8 {[%clk 0:00:56.3]} 32. Re7+ {[%clk 0:00:07.5]} 32... Kd8
{[%clk 0:00:53.8]} 33. h4 {[%clk 0:00:05.2]} 33... Rxa2 {[%clk 0:00:43.1]} 34.
Rxe6 {[%clk 0:00:05]} 34... Bd7 {[%clk 0:00:40.2]} 35. Rd6 {[%clk 0:00:04.1]}
35... Rc7 {[%clk 0:00:39.8]} 36. Rxb6 {[%clk 0:00:02.6]} 36... Ra1+ {[%clk
0:00:37.5]} 37. Kh2 {[%clk 0:00:01.7]} 37... Ra8 {[%clk 0:00:36.4]} 38. Rb8+
{[%clk 0:00:02.1]} 38... Rxb8 {[%clk 0:00:36.3]} 39. Rg8+ {[%clk 0:00:03]} 39...
Be8 {[%clk 0:00:36.6]} 40. h5 {[%clk 0:00:02.2]} 40... gxh5 {[%clk 0:00:34.4]}
41. Bxh5 {[%clk 0:00:03.1]} 41... Re7 {[%clk 0:00:34.2]} 42. Bg6 {[%clk
0:00:02.4]} 42... Kd7 {[%clk 0:00:33.3]} 43. e6+ {[%clk 0:00:02.3]} 43... Kxe6
{[%clk 0:00:32.5]} 44. Bxe8 {[%clk 0:00:02]} 44... Rbxe8 {[%clk 0:00:32.5]} 45.
Rg6+ {[%clk 0:00:02.9]} 45... Kf5 {[%clk 0:00:32.3]} 46. Rxh6 {[%clk 0:00:03.8]}
46... Re6 {[%clk 0:00:31.3]} 47. Rh5+ {[%clk 0:00:03.8]} 47... Kf4 {[%clk
0:00:30.3]} 48. Rxc5 {[%clk 0:00:04.7]} 48... Rh8+ {[%clk 0:00:29.8]} 49. Kg1
{[%clk 0:00:05]} 49... Re1# {[%clk 0:00:29.8]} 0-1

[Event "Betsys MČR v online bleskovém šachu 2021"]
[Site "Chess.com"]
[Date "2021.04.17"]
[Round "4"]
[White "EDA16"]
[Black "Michal5"]
[Result "1-0"]
[WhiteElo "1238"]
[BlackElo "1214"]
[TimeControl "180+1"]
[EndTime "9:37:39 PDT"]
[Termination "Uživatel EDA16 zvítězil po vzdání soupeře"]

1. d4 {[%clk 0:03:00.9]} 1... d5 {[%clk 0:02:56]} 2. c4 {[%clk 0:02:59.8]} 2...
Nf6 {[%clk 0:02:54.3]} 3. Nc3 {[%clk 0:02:59.1]} 3... c6 {[%clk 0:02:50.9]} 4.
cxd5 {[%clk 0:02:57.3]} 4... cxd5 {[%clk 0:02:49.1]} 5. Bg5 {[%clk 0:02:55.6]}
5... e6 {[%clk 0:02:44]} 6. e3 {[%clk 0:02:54.7]} 6... Nc6 {[%clk 0:02:43.5]} 7.
Bd3 {[%clk 0:02:53.4]} 7... Bb4 {[%clk 0:02:42]} 8. Qc2 {[%clk 0:02:51.4]} 8...
h6 {[%clk 0:02:35.3]} 9. Bxf6 {[%clk 0:02:49.6]} 9... Qxf6 {[%clk 0:02:33.9]}
10. Nf3 {[%clk 0:02:49.3]} 10... Bd7 {[%clk 0:02:33.5]} 11. O-O {[%clk
0:02:48.1]} 11... Qd8 {[%clk 0:02:32.5]} 12. a4 {[%clk 0:02:46.7]} 12... O-O
{[%clk 0:02:28.1]} 13. Rfe1 {[%clk 0:02:39.2]} 13... Rc8 {[%clk 0:01:52]} 14.
Re2 {[%clk 0:02:31.3]} 14... Na5 {[%clk 0:01:31.8]} 15. e4 {[%clk 0:02:25.3]}
15... dxe4 {[%clk 0:00:51.1]} 16. Bxe4 {[%clk 0:02:17.6]} 16... Bxc3 {[%clk
0:00:48.8]} 17. bxc3 {[%clk 0:02:16.6]} 17... Bc6 {[%clk 0:00:44.9]} 18. Bxc6
{[%clk 0:02:01.6]} 18... Nxc6 {[%clk 0:00:43.3]} 19. Ne5 {[%clk 0:01:56.7]}
19... Nxe5 {[%clk 0:00:41.3]} 20. dxe5 {[%clk 0:01:56.2]} 20... Qc7 {[%clk
0:00:39.5]} 21. Ra3 {[%clk 0:01:47.7]} 21... Rfd8 {[%clk 0:00:39.1]} 22. h3
{[%clk 0:01:44.2]} 22... Qa5 {[%clk 0:00:37.8]} 23. Rd2 {[%clk 0:01:32.8]} 23...
Re8 {[%clk 0:00:31.7]} 24. Rd7 {[%clk 0:01:23]} 24... Qxe5 {[%clk 0:00:19.2]}
25. Qb1 {[%clk 0:01:11.3]} 25... Qc5 {[%clk 0:00:17.9]} 26. Rb3 {[%clk
0:01:05.3]} 26... Qe5 {[%clk 0:00:15.3]} 27. Rbxb7 {[%clk 0:01:02.3]} 27... Rf8
{[%clk 0:00:13.2]} 28. Rxa7 {[%clk 0:01:00.2]} 28... Qxc3 {[%clk 0:00:12.7]} 29.
a5 {[%clk 0:00:52.7]} 29... Qc1+ {[%clk 0:00:12]} 30. Qxc1 {[%clk 0:00:51]}
30... Rxc1+ {[%clk 0:00:12.9]} 31. Kh2 {[%clk 0:00:49.6]} 31... Rcc8 {[%clk
0:00:13.8]} 32. a6 {[%clk 0:00:48]} 32... Ra8 {[%clk 0:00:14]} 33. Rxa8 {[%clk
0:00:45.3]} 33... Rxa8 {[%clk 0:00:13.5]} 34. a7 {[%clk 0:00:44.4]} 34... Kf8
{[%clk 0:00:13.7]} 35. Rb7 {[%clk 0:00:43.5]} 35... Ke8 {[%clk 0:00:06.3]} 36.
Rb8+ {[%clk 0:00:42.1]} 36... Kd7 {[%clk 0:00:06.1]} 37. Rxa8 {[%clk 0:00:41.6]}
37... Kc7 {[%clk 0:00:07]} 38. Rf8 {[%clk 0:00:40.3]} 38... Kb7 {[%clk
0:00:07.9]} 39. Rxf7+ {[%clk 0:00:39.2]} 39... Ka8 {[%clk 0:00:07.5]} 40. Rxg7
{[%clk 0:00:37.5]} 40... h5 {[%clk 0:00:06.8]} 41. Rg6 {[%clk 0:00:37.1]} 41...
e5 {[%clk 0:00:07.7]} 42. Rg5 {[%clk 0:00:36.7]} 42... e4 {[%clk 0:00:08.6]} 43.
Rxh5 {[%clk 0:00:36.3]} 43... e3 {[%clk 0:00:08]} 44. fxe3 {[%clk 0:00:35.3]}
44... Kb7 {[%clk 0:00:07.6]} 45. e4 {[%clk 0:00:34.4]} 45... Ka8 {[%clk
0:00:07.7]} 46. e5 {[%clk 0:00:33.5]} 46... Kb7 {[%clk 0:00:07.6]} 47. e6 {[%clk
0:00:33.4]} 47... Kc7 {[%clk 0:00:08.2]} 48. a8=Q {[%clk 0:00:31]} 48... Kd6
{[%clk 0:00:08]} 49. Qa4 {[%clk 0:00:30.3]} 49... Ke7 {[%clk 0:00:07.1]} 50. Rh6
{[%clk 0:00:28]} 50... Kd6 {[%clk 0:00:03.3]} 51. Qa6+ {[%clk 0:00:25.5]} 1-0

[Event "Betsys MČR v online bleskovém šachu 2021"]
[Site "Chess.com"]
[Date "2021.04.17"]
[Round "4"]
[White "kubaches123"]
[Black "Naty139"]
[Result "1-0"]
[WhiteElo "2015"]
[BlackElo "2235"]
[TimeControl "180+1"]
[EndTime "9:37:40 PDT"]
[Termination "Uživatel kubaches123 zvítězil na čas"]

1. d4 {[%clk 0:02:57.7]} 1... d5 {[%clk 0:02:47.8]} 2. c4 {[%clk 0:02:57.1]}
2... c6 {[%clk 0:02:47.1]} 3. Nf3 {[%clk 0:02:56.6]} 3... Nf6 {[%clk 0:02:43.6]}
4. Nc3 {[%clk 0:02:56.6]} 4... a6 {[%clk 0:02:43.5]} 5. c5 {[%clk 0:02:49.8]}
5... Bg4 {[%clk 0:02:41.3]} 6. Ne5 {[%clk 0:02:41.6]} 6... Bf5 {[%clk
0:02:36.5]} 7. Bf4 {[%clk 0:02:30.9]} 7... Nbd7 {[%clk 0:02:31]} 8. e3 {[%clk
0:02:30.2]} 8... Ne4 {[%clk 0:02:30.1]} 9. Be2 {[%clk 0:01:55.8]} 9... Nxe5
{[%clk 0:02:13.3]} 10. Bxe5 {[%clk 0:01:54.6]} 10... f6 {[%clk 0:01:46.7]} 11.
Bg3 {[%clk 0:01:46.6]} 11... e5 {[%clk 0:01:45.8]} 12. O-O {[%clk 0:01:27.4]}
12... Nxg3 {[%clk 0:01:45.1]} 13. hxg3 {[%clk 0:01:21.7]} 13... Be7 {[%clk
0:01:21.6]} 14. b4 {[%clk 0:01:02.5]} 14... O-O {[%clk 0:01:18.9]} 15. Bg4
{[%clk 0:01:02.5]} 15... Qd7 {[%clk 0:01:15.1]} 16. Bxf5 {[%clk 0:00:54.2]}
16... Qxf5 {[%clk 0:01:16]} 17. Qd2 {[%clk 0:00:51.8]} 17... Qg6 {[%clk
0:00:49.1]} 18. a4 {[%clk 0:00:47.2]} 18... exd4 {[%clk 0:00:39.2]} 19. exd4
{[%clk 0:00:42.3]} 19... f5 {[%clk 0:00:38.8]} 20. Ne2 {[%clk 0:00:30.9]} 20...
Bg5 {[%clk 0:00:32.2]} 21. Nf4 {[%clk 0:00:30.9]} 21... Qh6 {[%clk 0:00:30.3]}
22. Rfe1 {[%clk 0:00:30.8]} 22... Rfe8 {[%clk 0:00:27.5]} 23. Rab1 {[%clk
0:00:19.6]} 23... Re4 {[%clk 0:00:23.3]} 24. f3 {[%clk 0:00:16.5]} 24... Bxf4
{[%clk 0:00:19.3]} 25. gxf4 {[%clk 0:00:14.2]} 25... Qxf4 {[%clk 0:00:18.4]} 26.
Qxf4 {[%clk 0:00:13.5]} 26... Rxf4 {[%clk 0:00:19.3]} 27. Re7 {[%clk 0:00:14.1]}
27... Rb8 {[%clk 0:00:18.6]} 28. Rd1 {[%clk 0:00:13.4]} 28... Kf8 {[%clk
0:00:17.2]} 29. Rc7 {[%clk 0:00:13]} 29... Rh4 {[%clk 0:00:17.2]} 30. Kf2 {[%clk
0:00:13.2]} 30... Rh6 {[%clk 0:00:17.5]} 31. Re1 {[%clk 0:00:13.5]} 31... Rf6
{[%clk 0:00:17.7]} 32. Ree7 {[%clk 0:00:13.8]} 32... Rg6 {[%clk 0:00:17.8]} 33.
g3 {[%clk 0:00:13.5]} 33... f4 {[%clk 0:00:16.9]} 34. g4 {[%clk 0:00:13.6]}
34... Kg8 {[%clk 0:00:15.6]} 35. Rxb7 {[%clk 0:00:14.2]} 35... Rxb7 {[%clk
0:00:14.3]} 36. Rxb7 {[%clk 0:00:15.1]} 36... h5 {[%clk 0:00:14.6]} 37. Rb6
{[%clk 0:00:15.2]} 37... hxg4 {[%clk 0:00:14]} 38. fxg4 {[%clk 0:00:16.1]} 38...
Rxg4 {[%clk 0:00:14.2]} 39. Rxc6 {[%clk 0:00:16.6]} 39... f3 {[%clk 0:00:14]}
40. Kxf3 {[%clk 0:00:16]} 40... Rxd4 {[%clk 0:00:14.7]} 41. b5 {[%clk
0:00:15.8]} 41... Rxa4 {[%clk 0:00:14.9]} 42. b6 {[%clk 0:00:16.1]} 42... d4
{[%clk 0:00:15.1]} 43. Rc8+ {[%clk 0:00:16.2]} 43... Kh7 {[%clk 0:00:14.3]} 44.
b7 {[%clk 0:00:17.1]} 44... Rb4 {[%clk 0:00:14.6]} 45. b8=Q {[%clk 0:00:17.1]}
45... Rxb8 {[%clk 0:00:15.5]} 46. Rxb8 {[%clk 0:00:18]} 46... d3 {[%clk
0:00:15.7]} 47. Rd8 {[%clk 0:00:18.6]} 47... d2 {[%clk 0:00:16.1]} 48. Rxd2
{[%clk 0:00:19.2]} 1-0